fUST/lending_fUST_20241230
["ID","MTS","AMOUNT","RATE_DAILY","PERIOD"]
[347197746,1735563033276,-414.72832759,0.00012327,2]
[347197748,1735563033285,-500.0,0.00012327,2]
[347197750,1735563033295,-500.0,0.00012327,2]
[347197752,1735563033304,-500.0,0.00012327,2]
[347197754,1735563033313,-500.0,0.00012327,2]
[347197756,1735563033323,-500.0,0.00012327,2]
[347197758,1735563033333,-502.04418881,0.00012327,2]
[347197760,1735563033342,-501.52530935,0.00012327,2]
[347197762,1735563033351,-500.0,0.00012327,2]
[347197764,1735563033361,-500.0,0.00012327,2]
[347197766,1735563033370,-156.94373206,0.00012327,2]
[347197767,1735563033379,-500.26217952,0.00012327,2]
[347197768,1735563033387,-500.0,0.00012327,2]
[347197769,1735563033396,-500.0,0.00012327,2]
[347197770,1735563033406,-500.0,0.00012327,2]
[347197771,1735563033415,-500.0,0.00012327,2]
[347197772,1735563033425,-500.0,0.00012327,2]
[347197773,1735563033435,-500.0,0.00012327,2]
[347197774,1735563033444,-500.0,0.00012327,2]
[347197775,1735563033453,-179.12832759,0.00012327,2]
[347197776,1735563033462,-536.63,0.00012327,2]
[347197777,1735563033472,-500.0,0.00012327,2]
[347197778,1735563033481,-500.0,0.00012327,2]
[347197779,1735563033490,-596.95,0.00012327,2]
[347197780,1735563033500,-500.0,0.00012327,2]
[347197781,1735563033509,-2107.31,0.00012327,2]
[347197782,1735563033518,-500.0,0.00012327,2]
[347197783,1735563033527,-500.0,0.00012327,2]
[347197784,1735563033536,-501.52109065,0.00012327,2]
[347197785,1735563033546,-500.0,0.00012327,2]
[347197786,1735563033555,-500.0,0.00012327,2]
[347197787,1735563033564,-500.0,0.00012327,2]
[347197788,1735563033573,-500.0,0.00012327,2]
[347197789,1735563033582,-500.0,0.00012327,2]
[347197790,1735563033591,-500.0,0.00012327,2]
[347197791,1735563033600,-897.07,0.00012327,2]
[347197792,1735563033609,-500.0,0.00012327,2]
[347197793,1735563033619,-500.0,0.00012327,2]
[347197794,1735563033628,-500.0,0.00012327,2]
[347197795,1735563033637,-500.0,0.00012327,2]
[347197796,1735563033646,-500.0,0.00012327,2]
[347197797,1735563033657,-500.0,0.00012327,2]
[347197799,1735563033666,-268.7287307,0.00012327,2]
[347197801,1735563033675,-510.38972423,0.00012327,2]
[347197802,1735563033684,-500.0,0.00012327,2]
[347197803,1735563033694,-500.0,0.00012327,2]
[347197804,1735563033704,-500.0,0.00012327,2]
[347197806,1735563033713,-500.0,0.00012327,2]
[347197807,1735563033724,-500.0,0.00012597,2]
[347197808,1735563033733,-500.0,0.00012597,2]
[347197809,1735563033743,-500.0,0.00012597,2]
[347197810,1735563033753,-500.0,0.00012597,2]
[347197811,1735563033762,-500.0,0.00012597,2]
[347197812,1735563033772,-567.71972979,0.00012597,2]
[347197813,1735563033781,-364.1187436,0.00012597,2]
[347197814,1735563033791,-500.0,0.00012597,2]
[347197815,1735563033800,-4008.89,0.00012597,2]
[347197816,1735563033809,-500.0,0.00012597,2]
[347197817,1735563033820,-502.28296245,0.00012598,2]
[347197818,1735563033830,-647.86565912,0.00012598,2]
[347197819,1735563033839,-500.0,0.00012598,2]
[347197820,1735563033848,-495.13268368,0.00012598,2]
[347197821,1735563033858,-500.0,0.00012598,2]
[347197822,1735563033868,-558.21934189,0.00012598,2]
[347197823,1735563033878,-507.04536,0.00012598,2]
[347197824,1735563033889,-500.0,0.00012598,2]
[347197825,1735563033899,-500.0,0.00012598,2]
[347197826,1735563033908,-500.0,0.00012598,2]
[347197827,1735563033918,-500.0,0.00012598,2]
[347197828,1735563033929,-500.0,0.00012598,2]
[347197829,1735563033939,-500.0,0.00012598,2]
[347197830,1735563033948,-500.0,0.00012598,2]
[347197831,1735563033957,-500.0,0.00012598,2]
[347197832,1735563033969,-500.0,0.00012598,2]
[347197833,1735563033980,-500.0,0.00012598,2]
[347197834,1735563033990,-500.0,0.00012598,2]
[347197835,1735563033999,-500.0,0.00012598,2]
[347197836,1735563034009,-550.37284806,0.00012598,2]
[347197837,1735563034018,-500.0,0.00012598,2]
[347197838,1735563034027,-500.0,0.00012598,2]
[347197839,1735563034037,-500.0,0.00012598,2]
[347197840,1735563034046,-500.0,0.00012598,2]
[347197841,1735563034056,-501.44856456,0.00012598,2]
[347197842,1735563034065,-500.0,0.00012598,2]
[347197843,1735563034075,-500.0,0.00012598,2]
[347197844,1735563034084,-500.0,0.00012598,2]
[347197845,1735563034093,-500.0,0.00012598,2]
[347197846,1735563034103,-500.0,0.00012598,2]
[347197847,1735563034113,-500.0,0.00012598,2]
[347197848,1735563034122,-500.0,0.00012598,2]
[347197849,1735563034132,-500.0,0.00012598,2]
[347197850,1735563034141,-500.0,0.00012598,2]
[347197851,1735563034151,-500.0,0.00012598,2]
[347197852,1735563034160,-981.97,0.00012599,2]
[347197853,1735563034169,-500.0,0.00012599,2]
[347197854,1735563034178,-500.0,0.00012599,2]
[347197855,1735563034188,-529.3374986,0.00012599,2]
[347197856,1735563034197,-606.14951666,0.00012599,2]
[347197857,1735563034207,-158.20976362,0.000126,2]
[347197858,1735563034217,-500.0,0.000126,2]
[347197859,1735563034226,-500.0,0.000126,2]
[347197860,1735563034235,-500.0,0.000126,2]
[347197861,1735563034244,-359.4364988,0.000126,2]
[347197862,1735563034253,-500.0,0.000126,2]
[347197863,1735563034262,-500.0,0.000126,2]
[347197864,1735563034271,-500.0,0.000126,2]
[347197865,1735563034280,-500.0,0.000126,2]
[347197866,1735563034290,-500.0,0.000126,2]
[347197867,1735563034299,-500.0,0.000126,2]
[347197868,1735563034309,-500.0,0.000126,2]
[347197869,1735563034318,-500.0,0.00012601,2]
[347197870,1735563034327,-500.0,0.00012601,2]
[347197871,1735563034337,-2107.31,0.00012601,2]
[347197872,1735563034347,-500.0,0.00012601,2]
[347197873,1735563034357,-897.07,0.00012601,2]
[347197874,1735563034366,-500.0,0.00012601,2]
[347197875,1735563034376,-500.0,0.00012601,2]
[347197876,1735563034385,-596.24,0.00012601,2]
[347197877,1735563034395,-500.0,0.00012601,2]
[347197878,1735563034405,-28239.38148701,0.00012826,2]
[347197879,1735563034415,-500.0,0.00012871,2]
[347197880,1735563034424,-205.13670382,0.00012871,2]
[347197881,1735563034434,-500.0,0.00012871,2]
[347197882,1735563034443,-500.0,0.00012871,2]
[347197883,1735563034453,-4008.89,0.00012871,2]
[347197884,1735563034462,-500.0,0.00012872,2]
[347197885,1735563034473,-500.0,0.00012874,2]
[347197886,1735563034483,-720.33,0.00012874,2]
[347197887,1735563034492,-500.0,0.00012874,2]
[347197888,1735563034501,-182.01,0.00012874,2]
[347197889,1735563034511,-500.0,0.00012875,2]
[347197890,1735563034520,-500.0,0.00012875,2]
[347197891,1735563034530,-2107.31,0.00012875,2]
[347197892,1735563034540,-500.0,0.00012875,2]
[347197893,1735563034549,-897.07,0.00012875,2]
[347197894,1735563034558,-500.0,0.00012875,2]
[347197895,1735563034568,-397.23740074,0.000129,2]
[347197896,1735563034578,-397.23740073,0.000129,2]
[347197897,1735563034587,-188.8318042,0.00012913,2]
[347197898,1735563034596,-397.23740073,0.00013107,2]
[347197899,1735563034605,-500.0,0.00013145,2]
[347197900,1735563034615,-500.0,0.00013145,2]
[347197901,1735563034624,-500.0,0.00013145,2]
[347197902,1735563034633,-4008.89,0.00013145,2]
[347197903,1735563034643,-500.0,0.00013146,2]
[347197904,1735563034652,-500.0,0.00013147,2]
[347197905,1735563034661,-500.0,0.00013148,2]
[347197906,1735563034670,-720.33,0.00013148,2]
[347197907,1735563034679,-500.0,0.00013148,2]
[347197908,1735563034688,-500.0,0.00013149,2]
[347197909,1735563034698,-500.0,0.00013149,2]
[347197910,1735563034707,-2107.31,0.00013149,2]
[347197911,1735563034718,-500.0,0.00013149,2]
[347197912,1735563034727,-897.07,0.00013149,2]
[347197913,1735563034737,-500.0,0.00013149,2]
[347197914,1735563034746,-587.0,0.00013323,2]
[347197915,1735563034755,-500.0,0.00013419,2]
[347197916,1735563034764,-500.0,0.00013419,2]
[347197917,1735563034773,-500.0,0.00013419,2]
[347197918,1735563034782,-4008.89,0.00013419,2]
[347197919,1735563034791,-500.0,0.00013422,2]
[347197920,1735563034800,-720.33,0.00013422,2]
[347197921,1735563034810,-500.0,0.00013422,2]
[347197922,1735563034820,-500.0,0.00013423,2]
[347197923,1735563034829,-500.0,0.00013423,2]
[347197924,1735563034839,-2107.31,0.00013423,2]
[347197925,1735563034848,-500.0,0.00013423,2]
[347197926,1735563034857,-897.07,0.00013423,2]
[347197927,1735563034866,-500.0,0.00013423,2]
[347197928,1735563034875,-500.0,0.0001349,2]
[347197929,1735563034888,-188.8318042,0.00013598,2]
[347197930,1735563034897,-192.09654558,0.00013599,2]
[347197931,1735563034906,-500.0,0.00013693,2]
[347197932,1735563034915,-500.0,0.00013693,2]
[347197933,1735563034990,-500.0,0.00013693,2]
[347197934,1735563035006,-4008.89,0.00013693,2]
[347197935,1735563035016,-981.97,0.00013694,2]
[347197936,1735563035025,-500.0,0.00013696,2]
[347197937,1735563035035,-720.33,0.00013696,2]
[347197938,1735563035043,-500.0,0.00013696,2]
[347197939,1735563035053,-500.0,0.00013697,2]
[347197940,1735563035062,-500.0,0.00013697,2]
[347197941,1735563035072,-2107.31,0.00013697,2]
[347197942,1735563035081,-500.0,0.00013697,2]
[347197943,1735563035090,-897.07,0.00013697,2]
[347197944,1735563035099,-500.0,0.00013697,2]
[347197945,1735563035108,-6474.74650428,0.00013698,2]
[347197946,1735563035117,-981.97,0.00013698,2]
[347197947,1735563035127,-1000.0,0.00013698,2]
[347197948,1735563035136,-1107.5649309,0.00013698,2]
[347197949,1735563035145,-1000.0,0.00013698,2]
[347197950,1735563035154,-1000.0,0.00013698,2]
[347197951,1735563035163,-1112.81732426,0.00013698,2]
[347197952,1735563035173,-500.0,0.00013698,2]
[347197953,1735563035182,-500.0,0.00013698,2]
[347197954,1735563035191,-500.0,0.00013698,2]
[347197955,1735563035201,-500.0,0.00013698,2]
[347197956,1735563035210,-500.0,0.00013698,2]
[347197957,1735563035220,-552.59579627,0.00013698,2]
[347197958,1735563035229,-500.0,0.00013698,2]
[347197959,1735563035238,-500.0,0.00013698,2]
[347197960,1735563035248,-500.0,0.00013698,2]
[347197961,1735563035257,-1408.011437,0.00013699,2]
[347197962,1735563035266,-307.514572,0.00013699,2]
[347197963,1735563035275,-307.514572,0.00013699,2]
[347197964,1735563035285,-347.32728,0.00013699,2]
[347197965,1735563035294,-347.32728,0.00013699,2]
[347197966,1735563035304,-493.271403,0.00013699,2]
[347197967,1735563035313,-151.0,0.00013699,2]
[347197968,1735563035322,-179.331997,0.00013699,2]
[347197969,1735563035332,-493.271403,0.00013699,2]
[347197970,1735563035342,-151.0,0.00013699,2]
[347197971,1735563035351,-179.331997,0.00013699,2]
[347197972,1735563035360,-205.890232,0.00013699,2]
[347197973,1735563035369,-205.890232,0.00013699,2]
[347197974,1735563035378,-151.0,0.00013699,2]
[347197975,1735563035388,-151.0,0.000139,2]
[347197976,1735563035397,-203.03109864,0.00013966,2]
[347197977,1735563035407,-500.0,0.00013967,2]
[347197978,1735563035416,-500.0,0.00013967,2]
[347197979,1735563035426,-500.0,0.00013967,2]
[347197980,1735563035435,-4008.89,0.00013967,2]
[347197981,1735563035445,-500.0,0.0001397,2]
[347197982,1735563035454,-720.33,0.0001397,2]
[347197983,1735563035463,-500.0,0.0001397,2]
[347197984,1735563035473,-500.0,0.00013971,2]
[347197985,1735563035482,-500.0,0.00013971,2]
[347197986,1735563035492,-2107.31,0.00013971,2]
[347197987,1735563035501,-500.0,0.00013971,2]
[347197988,1735563035510,-897.07,0.00013971,2]
[347197989,1735563035519,-500.0,0.00013971,2]
[347197990,1735563035528,-400.0,0.00013973,2]
[347197991,1735563035537,-981.97,0.00014009,2]
[347197992,1735563035547,-3341.59866171,0.0001403,2]
[347197993,1735563035556,-1000.0,0.00014038,2]
[347197994,1735563035565,-192.09654558,0.00014079,2]
[347197995,1735563035574,-397.23740073,0.00014137,2]
[347197996,1735563035582,-151.0,0.000142,2]
[347197997,1735563035592,-500.0,0.00014241,2]
[347197998,1735563035601,-500.0,0.00014241,2]
[347197999,1735563035610,-500.0,0.00014241,2]
[347198000,1735563035619,-4008.89,0.00014241,2]
[347198001,1735563035629,-500.0,0.00014244,2]
[347198002,1735563035638,-720.33,0.00014244,2]
[347198003,1735563035647,-500.0,0.00014244,2]
[347198004,1735563035656,-500.0,0.00014245,2]
[347198005,1735563035665,-500.0,0.00014245,2]
[347198006,1735563035675,-2107.31,0.00014245,2]
[347198007,1735563035686,-500.0,0.00014245,2]
[347198008,1735563035695,-897.07,0.00014245,2]
[347198009,1735563035705,-500.0,0.00014245,2]
[347198010,1735563035714,-151.0,0.000145,2]
[347198011,1735563035725,-500.0,0.00014515,2]
[347198012,1735563035734,-500.0,0.00014515,2]
[347198013,1735563035743,-500.0,0.00014515,2]
[347198014,1735563035753,-4008.89,0.00014515,2]
[347198015,1735563035762,-307.514572,0.00014516,2]
[347198016,1735563035771,-307.514572,0.00014516,2]
[347198017,1735563035780,-347.32728,0.00014516,2]
[347198018,1735563035789,-347.32728,0.00014516,2]
[347198019,1735563035798,-493.271403,0.00014516,2]
[347198020,1735563035808,-151.0,0.00014516,2]
[347198021,1735563035818,-493.271403,0.00014516,2]
[347198022,1735563035827,-179.331997,0.00014516,2]
[347198023,1735563035837,-151.0,0.00014516,2]
[347198024,1735563035846,-179.331997,0.00014516,2]
[347198025,1735563035855,-205.890232,0.00014516,2]
[347198026,1735563035864,-205.890232,0.00014516,2]
[347198027,1735563035874,-151.0,0.00014516,2]
[347198028,1735563035886,-500.0,0.00014518,2]
[347198029,1735563035896,-720.33,0.00014518,2]
[347198030,1735563035905,-500.0,0.00014518,2]
[347198031,1735563035915,-500.0,0.00014519,2]
[347198032,1735563035926,-500.0,0.00014519,2]
[347198033,1735563035936,-2107.31,0.00014519,2]
[347198034,1735563035945,-500.0,0.00014519,2]
[347198035,1735563035956,-897.07,0.00014519,2]
[347198036,1735563035966,-500.0,0.00014519,2]
[347198037,1735563035976,-192.09654558,0.00014558,2]
[347198038,1735563035985,-2570.12142901,0.0001461,2]
[347198039,1735563035994,-546.0,0.0001464,2]
[347198040,1735563036004,-4151.05229011,0.00014777,2]
[347198041,1735563036013,-500.0,0.00014789,2]
[347198042,1735563036023,-500.0,0.00014789,2]
[347198043,1735563036033,-500.0,0.00014789,2]
[347198044,1735563036042,-4008.89,0.00014789,2]
[347198045,1735563036051,-981.97,0.0001479,2]
[347198046,1735563036060,-500.0,0.00014792,2]
[347198047,1735563036069,-720.33,0.00014792,2]
[347198048,1735563036078,-500.0,0.00014792,2]
[347198049,1735563036087,-500.0,0.00014793,2]
[347198050,1735563036096,-500.0,0.00014793,2]
[347198051,1735563036106,-2107.31,0.00014793,2]
[347198052,1735563036115,-500.0,0.00014793,2]
[347198053,1735563036124,-897.07,0.00014793,2]
[347198054,1735563036133,-500.0,0.00014793,2]
[347198055,1735563036142,-307.514572,0.000148,2]
[347198056,1735563036151,-307.514572,0.000148,2]
[347198057,1735563036160,-347.32728,0.000148,2]
[347198058,1735563036169,-347.32728,0.000148,2]
[347198059,1735563036179,-347.32728,0.000148,2]
[347198060,1735563036189,-347.32728,0.000148,2]
[347198061,1735563036198,-347.32728,0.000148,2]
[347198062,1735563036207,-347.32728,0.000148,2]
[347198063,1735563036216,-347.32728,0.000148,2]
[347198064,1735563036228,-347.32728,0.000148,2]
[347198065,1735563036238,-493.271403,0.000148,2]
[347198066,1735563036247,-493.271403,0.000148,2]
[347198067,1735563036256,-493.271403,0.000148,2]
[347198068,1735563036265,-493.271403,0.000148,2]
[347198069,1735563036275,-151.0,0.000148,2]
[347198070,1735563036284,-151.0,0.000148,2]
[347198071,1735563036293,-151.0,0.000148,2]
[347198072,1735563036303,-151.0,0.000148,2]
[347198073,1735563036313,-493.271403,0.000148,2]
[347198074,1735563036322,-179.331997,0.000148,2]
[347198075,1735563036331,-493.271403,0.000148,2]
[347198076,1735563036340,-199.063201,0.000148,2]
[347198077,1735563036349,-493.271403,0.000148,2]
[347198078,1735563036358,-493.271403,0.000148,2]
[347198079,1735563036368,-179.331997,0.000148,2]
[347198080,1735563036377,-205.890232,0.000148,2]
[347198081,1735563036386,-205.890232,0.000148,2]
[347198082,1735563036396,-205.890232,0.000148,2]
[347198083,1735563036405,-205.890232,0.000148,2]
[347198084,1735563036415,-205.890232,0.000148,2]
[347198085,1735563036424,-205.890232,0.000148,2]
[347198086,1735563036433,-205.890232,0.000148,2]
[347198087,1735563036443,-205.890232,0.000148,2]
[347198088,1735563036452,-151.0,0.000148,2]
[347198089,1735563036462,-151.0,0.000148,2]
[347198090,1735563036472,-151.0,0.000148,2]
[347198091,1735563036481,-151.0,0.000148,2]
[347198092,1735563036490,-151.0,0.000148,2]
[347198093,1735563036500,-762.626,0.0001482,2]
[347198094,1735563036509,-347.32728,0.00014964,2]
[347198095,1735563036518,-347.32728,0.00014964,2]
[347198096,1735563036528,-493.271403,0.00014964,2]
[347198097,1735563036537,-151.0,0.00014964,2]
[347198098,1735563036546,-493.271403,0.00014964,2]
[347198099,1735563036556,-205.890232,0.00014964,2]
[347198100,1735563036565,-205.890232,0.00014964,2]
[347198101,1735563036574,-217.973188,0.00014964,2]
[347198102,1735563036583,-3054.84949986,0.00014989,2]
[347198103,1735563036593,-9935.23862476,0.0001499,2]
[347198104,1735563036602,-9935.23862476,0.00014993,2]
[347198105,1735563036612,-3054.84949986,0.00014995,2]
[347198106,1735563036621,-3054.84949986,0.00014995,2]
[347198107,1735563036631,-9935.23862476,0.00014998,2]
[347198108,1735563036640,-307.514572,0.00015,2]
[347198109,1735563036649,-307.514572,0.00015,2]
[347198110,1735563036658,-179.331997,0.00015,2]
[347198111,1735563036666,-179.331997,0.00015,2]
[347198112,1735563036675,-192.09654558,0.00015038,2]
[347198113,1735563036684,-614.69019067,0.0001504,2]
[347198114,1735563036694,-517.971,0.00015048,2]
[347198115,1735563036703,-500.0,0.00015063,2]
[347198116,1735563036712,-500.0,0.00015063,2]
[347198117,1735563036722,-500.0,0.00015063,2]
[347198118,1735563036732,-4008.89,0.00015063,2]
[347198119,1735563036741,-500.0,0.00015066,2]
[347198120,1735563036750,-720.33,0.00015066,2]
[347198121,1735563036759,-371.48,0.00015066,2]
[347198122,1735563036836,-500.0,0.00015067,2]
[347198123,1735563036846,-500.0,0.00015067,2]
[347198124,1735563036856,-2107.31,0.00015067,2]
[347198125,1735563036872,-500.0,0.00015067,2]
[347198126,1735563036883,-897.07,0.00015067,2]
[347198127,1735563036892,-500.0,0.00015067,2]
[347198128,1735563036901,-151.0,0.000151,2]
[347198129,1735563036911,-10579.55317666,0.00015102,2]
[347198130,1735563036920,-397.23740073,0.00015167,2]
[347198131,1735563036930,-153.5340186,0.00015178,2]
[347198132,1735563036939,-153.5340186,0.00015178,2]
[347198133,1735563036948,-306.0,0.00015288,2]
[347198134,1735563036957,-153.5340186,0.00015288,2]
[347198135,1735563036966,-153.5340186,0.00015288,2]
[347198136,1735563036976,-151.0,0.000153,2]
[347198137,1735563036985,-159.55777,0.00015327,2]
[347198138,1735563036994,-1072.88841,0.00015327,2]
[347198139,1735563037003,-1072.88841,0.00015327,2]
[347198140,1735563037012,-219.324067,0.00015327,2]
[347198141,1735563037021,-219.324067,0.00015327,2]
[347198142,1735563037030,-622.503999,0.00015327,2]
[347198143,1735563037039,-622.503999,0.00015327,2]
[347198144,1735563037049,-151.0,0.00015327,2]
[347198145,1735563037058,-151.0,0.00015327,2]
[347198146,1735563037067,-808.699634,0.00015327,2]
[347198147,1735563037076,-808.699634,0.00015327,2]
[347198148,1735563037085,-487.835722,0.00015327,2]
[347198149,1735563037094,-487.835722,0.00015327,2]
[347198150,1735563037104,-151.0,0.00015327,2]
[347198151,1735563037113,-151.0,0.00015327,2]
[347198152,1735563037121,-500.0,0.00015337,2]
[347198153,1735563037130,-500.0,0.00015337,2]
[347198154,1735563037139,-4008.89,0.00015337,2]
[347198155,1735563037149,-347.32728,0.00015338,2]
[347198156,1735563037158,-347.32728,0.00015338,2]
[347198157,1735563037167,-493.271403,0.00015338,2]
[347198158,1735563037176,-151.0,0.00015338,2]
[347198159,1735563037185,-493.271403,0.00015338,2]
[347198160,1735563037194,-205.890232,0.00015338,2]
[347198161,1735563037202,-205.890232,0.00015338,2]
[347198162,1735563037211,-500.0,0.0001534,2]
[347198163,1735563037220,-720.33,0.0001534,2]
[347198164,1735563037229,-500.0,0.00015341,2]
[347198165,1735563037239,-500.0,0.00015341,2]
[347198166,1735563037248,-2107.31,0.00015341,2]
[347198167,1735563037257,-500.0,0.00015341,2]
[347198168,1735563037266,-897.07,0.00015341,2]
[347198169,1735563037275,-500.0,0.00015341,2]
[347198170,1735563037284,-981.97,0.00015359,2]
[347198171,1735563037293,-153.5340186,0.0001537,2]
[347198172,1735563037303,-214.3641981,0.0001537,2]
[347198173,1735563037312,-214.3641981,0.0001537,2]
[347198174,1735563037321,-214.3641981,0.0001537,2]
[347198175,1735563037330,-151.0,0.000154,2]
[347198176,1735563037339,-257.917,0.0001542,2]
[347198177,1735563037348,-394.0,0.0001542,2]
[347198178,1735563037357,-2098.0,0.0001542,2]
[347198179,1735563037365,-627.928,0.0001542,2]
[347198180,1735563037375,-2376.0,0.0001542,2]
[347198181,1735563037384,-232.5838835,0.00015443,2]
[347198182,1735563037393,-307.514572,0.00015483,2]
[347198183,1735563037402,-307.514572,0.00015483,2]
[347198184,1735563037411,-347.32728,0.00015483,2]
[347198185,1735563037420,-347.32728,0.00015483,2]
[347198186,1735563037430,-493.271403,0.00015483,2]
[347198187,1735563037439,-151.0,0.00015483,2]
[347198188,1735563037448,-179.331997,0.00015483,2]
[347198189,1735563037458,-493.271403,0.00015483,2]
[347198190,1735563037467,-179.331997,0.00015483,2]
[347198191,1735563037477,-205.890232,0.00015483,2]
[347198192,1735563037486,-205.890232,0.00015483,2]
[347198193,1735563037495,-3821.45319857,0.000155,2]
[347198194,1735563037504,-462.16069224,0.00015517,2]
[347198195,1735563037513,-192.09654558,0.00015517,2]
[347198196,1735563037522,-2045.67179454,0.00015517,2]
[347198197,1735563037531,-151.0,0.00015599,2]
[347198198,1735563037540,-981.97,0.00015599,2]
[347198199,1735563037549,-981.97,0.00015599,2]
[347198200,1735563037558,-981.97,0.00015599,2]
[347198201,1735563037567,-981.97,0.00015599,2]
[347198202,1735563037576,-981.97,0.00015599,2]
[347198203,1735563037586,-981.97,0.00015599,2]
[347198204,1735563037595,-981.97,0.00015599,2]
[347198205,1735563037605,-981.97,0.00015599,2]
[347198206,1735563037614,-68693.84901711,0.000156,2]
[347198207,1735563037623,-269.440535,0.000156,2]
[347198208,1735563037632,-182.351012,0.000156,2]
[347198209,1735563037641,-182.351012,0.000156,2]
[347198210,1735563037653,-251.115834,0.000156,2]
[347198211,1735563037666,-251.115834,0.000156,2]
[347198212,1735563037680,-151.0,0.000156,2]
[347198213,1735563037694,-174.685253,0.000156,2]
[347198214,1735563037705,-174.685253,0.000156,2]
[347198215,1735563037717,-307.514572,0.000156,2]
[347198216,1735563037731,-307.514572,0.000156,2]
[347198217,1735563037743,-347.32728,0.000156,2]
[347198218,1735563037756,-347.327275,0.000156,2]
[347198219,1735563037770,-493.271403,0.000156,2]
[347198220,1735563037783,-151.0,0.000156,2]
[347198221,1735563037797,-179.331997,0.000156,2]
[347198222,1735563037809,-493.271404,0.000156,2]
[347198223,1735563037823,-179.331997,0.000156,2]
[347198224,1735563037835,-205.890232,0.000156,2]
[347198225,1735563037847,-205.890236,0.000156,2]
[347198226,1735563037859,-1072.88841,0.000156,2]
[347198227,1735563037871,-1072.88841,0.000156,2]
[347198228,1735563037886,-219.324067,0.000156,2]
[347198229,1735563037898,-219.324067,0.000156,2]
[347198230,1735563037911,-622.503999,0.000156,2]
[347198231,1735563037921,-622.503999,0.000156,2]
[347198232,1735563037935,-151.0,0.000156,2]
[347198233,1735563037947,-151.0,0.000156,2]
[347198234,1735563037959,-808.699634,0.000156,2]
[347198235,1735563037974,-808.699634,0.000156,2]
[347198236,1735563037988,-487.835722,0.000156,2]
[347198237,1735563038000,-487.835722,0.000156,2]
[347198238,1735563038014,-464.0,0.000156,2]
[347198239,1735563038027,-151.0,0.000156,2]
[347198240,1735563038041,-151.0,0.000156,2]
[347198241,1735563038052,-500.0,0.00015611,2]
[347198242,1735563038062,-500.0,0.00015611,2]
[347198243,1735563038073,-4008.89,0.00015611,2]
[347198244,1735563038084,-981.97,0.00015612,2]
[347198245,1735563038096,-500.0,0.00015614,2]
[347198246,1735563038109,-720.33,0.00015614,2]
[347198247,1735563038123,-500.0,0.00015615,2]
[347198248,1735563038134,-500.0,0.00015615,2]
[347198249,1735563038145,-2107.31,0.00015615,2]
[347198250,1735563038156,-500.0,0.00015615,2]
[347198251,1735563038167,-897.07,0.00015615,2]
[347198252,1735563038180,-430.19877263,0.00015615,2]
[347198253,1735563038191,-981.97,0.00015616,2]
[347198254,1735563038202,-981.97,0.00015616,2]
[347198255,1735563038212,-981.97,0.00015616,2]
[347198256,1735563038226,-981.97,0.00015616,2]
[347198257,1735563038237,-981.97,0.00015616,2]
[347198258,1735563038249,-981.97,0.00015616,2]